Workbook

Sheet Welcome

Sheet Instructions

Sheet Example
C3: Telephone Bill Analyser
C4: Number | D4: Detail or Line Type | E4: Service Fee | F4: Local | H4: National | J4: Overseas | L4: 13/1300 | N4: Mobile | P4: Special | R4: Other Fees | S4: Total
F5: Calls | G5: Cost | H5: Calls | I5: Cost | J5: Calls | K5: Cost | L5: Calls | M5: Cost | N5: Calls | O5: Cost | P5: Calls | Q5: Cost
C6: 02 91250555 | D6: Business Line Rotary | E6: 36.36 | F6: 170 | G6: =F6*0.2 -> 34 | H6: 42 | I6: =H6*0.7272 -> 30.5424 | J6: 7 | K6: 9.23 | L6: 42 | M6: =L6*0.3182 -> 13.3644 | N6: 38 | O6: 100.12 | P6: 1 | Q6: =0.3454*P6 -> 0.3454 | R6: 3.22 | S6: =IF(E6+G6+I6+K6+M6+O6+Q6+R6>0,E6+G6+I6+K6+M6+O6+Q6+R6," ") -> 227.1822
C7: 02 91250516 | D7: Business Line Rotary | E7: 36.36 | F7: 106 | G7: =F7*0.2 -> 21.2 | H7: 31 | I7: 22.5432 | J7: 1 | K7: 1.34 | L7: 26 | M7: =L7*0.3182 -> 8.2732 | N7: 25 | O7: 50.22 | P7: 3 | Q7: =0.3454*P7 -> 1.0362 | R7: 3.22 | S7: =IF(E7+G7+I7+K7+M7+O7+Q7+R7>0,E7+G7+I7+K7+M7+O7+Q7+R7," ") -> 144.1926
C8: 02 91250520 | D8: Business Line Rotary | E8: 36.36 | F8: 87 | G8: 17.4 | H8: 23 | I8: 16.7256 | L8: 11 | M8: 3.5002 | N8: 11 | O8: 12.01 | P8: 1 | Q8: 0.3454 | R8: 3.22 | S8: 89.5612
C9: 02 91250563 | D9: Business Line Rotary | E9: 36.36 | F9: 62 | G9: 12.4 | H9: 11 | I9: 7.9992 | L9: 4 | M9: 1.2728 | N9: 6 | O9: 2.08 | R9: 3.22 | S9: 63.332
C10: 02 91250564 | D10: Business Line Rotary | E10: 36.36 | F10: 24 | G10: 4.8 | H10: 7 | I10: 5.0904 | N10: 2 | O10: 2.53 | R10: 3.22 | S10: 52.0004
C11: 02 91250500 | D11: Fax Line | E11: 36.36 | F11: 89 | G11: 17.8 | H11: 17 | I11: =H11*0.7272 -> 12.3624 | S11: 66.5224
D12: ADSL2 300Gb | E12: 81.82 | S12: =IF(E12+G12+I12+K12+M12+O12+Q12+R12>0,E12+G12+I12+K12+M12+O12+Q12+R12," ") -> 81.82
D13: Paper Bill Fee | R13: 2 | S13: =IF(E13+G13+I13+K13+M13+O13+Q13+R13>0,E13+G13+I13+K13+M13+O13+Q13+R13," ") -> 2
D14: Credit Card Fee | R14: 8.01 | S14: =IF(E14+G14+I14+K14+M14+O14+Q14+R14>0,E14+G14+I14+K14+M14+O14+Q14+R14," ") -> 8.01
W17: You can enter
D18: Sub Totals: | E18: =IF(SUM(E6:E17)>0,SUM(E6:E17)," ") -> 299.98 | F18: 538 | G18: 107.6 | H18: 131 | I18: 95.2632 | J18: 8 | K18: 10.57 | L18: 83 | M18: 26.4106 | N18: 82 | O18: 166.96 | P18: 5 | Q18: 1.727 | R18: 26.11 | S18: 734.6208 | W18: your data here
E20: Average call costs: | G20: =IF(ISERROR(G18/F18),"",G18/F18) -> 0.2 | I20: =IF(ISERROR(I18/H18),"",I18/H18) -> 0.7272 | K20: =IF(ISERROR(K18/J18),"",K18/J18) -> 1.32125 | M20: =IF(ISERROR(M18/L18),"",M18/L18) -> 0.3182 | O20: =IF(ISERROR(O18/N18),"",O18/N18) -> 2.036097561 | Q20: =IF(ISERROR(Q18/P18),"",Q18/P18) -> 0.3454
K22: Mobile Calls: | L22: Total Minutes: | O22: 317 | Q22: GST: | S22: =IF(ISERROR(S18*0.1),"",S18*0.1) -> 73.46208
L23: Cost per Minute: | O23: =IF(ISERROR(O18/O22),"",O18/O22) -> 0.5266876972 | Q23: Bill Total: | S23: =IF(ISERROR(S18+S22),"",S18+S22) -> 808.08288
S25: Copyright Talking Business co. Ph:1300 666 765

Sheet Analyser
C3: Telephone Bill Analyser
C4: Number | D4: Detail or Line Type | E4: Service Fee | F4: Local | H4: National | J4: Overseas | L4: 13/1300 | N4: Mobile | P4: Special | R4: Other Fees | S4: Total
F5: Calls | G5: Cost | H5: Calls | I5: Cost | J5: Calls | K5: Cost | L5: Calls | M5: Cost | N5: Calls | O5: Cost | P5: Calls | Q5: Cost
S6: =IF(E6+G6+I6+K6+M6+O6+Q6+R6>0,E6+G6+I6+K6+M6+O6+Q6+R6," ") -> 
S7: =IF(E7+G7+I7+K7+M7+O7+Q7+R7>0,E7+G7+I7+K7+M7+O7+Q7+R7," ") -> 
D18: Sub Totals: | E18: =IF(SUM(E6:E17)>0,SUM(E6:E17)," ") ->  | G18: =IF(SUM(G6:G17)>0,SUM(G6:G17)," ") -> 
E20: Average call costs: | G20: =IF(ISERROR(G18/F18),"",G18/F18) ->  | I20: =IF(ISERROR(I18/H18),"",I18/H18) ->  | K20: =IF(ISERROR(K18/J18),"",K18/J18) ->  | M20: =IF(ISERROR(M18/L18),"",M18/L18) ->  | O20: =IF(ISERROR(O18/N18),"",O18/N18) ->  | Q20: =IF(ISERROR(Q18/P18),"",Q18/P18) -> 
K22: Mobile Calls: | L22: Total Minutes: | Q22: GST: | S22: =IF(ISERROR(S18*0.1),"",S18*0.1) -> 
L23: Cost per Minute: | O23: =IF(ISERROR(O18/O22),"",O18/O22) ->  | Q23: Bill Total: | S23: =IF(ISERROR(S18+S22),"",S18+S22) -> 
S25: Copyright Talking Business co. Ph:1300 666 765

Sheet Data (hidden)
A1: Business Line
A2: Business Line Rotary
A3: Fax Line
A4: Private Line
A5: ADSL2
A6: OnRamp-2
A7: Paper Bill Fee
A8: Credit Card Fee
